fUSD/lending_fUSD_20240317
["ID","MTS","AMOUNT","RATE_DAILY","PERIOD"]
[319342434,1710678647175,-502.7320487,0.00018998,2]
[319342435,1710678647184,-500.0,0.00018998,2]
[319342436,1710678647193,-185.41631864,0.00018998,2]
[319342437,1710678647202,-500.0,0.00018998,2]
[319342438,1710678647211,-500.0,0.00018998,2]
[319342439,1710678647222,-500.0,0.00018998,2]
[319342440,1710678647231,-500.0,0.00018998,2]
[319342441,1710678647243,-500.0,0.00018998,2]
[319342442,1710678647253,-500.0,0.00018998,2]
[319342443,1710678647263,-202.34529529,0.00018998,2]
[319342444,1710678647272,-500.0,0.00018998,2]
[319342445,1710678647281,-500.0,0.00018998,2]
[319342446,1710678647292,-500.0,0.00018998,2]
[319342447,1710678647301,-500.0,0.00018998,2]
[319342448,1710678647311,-500.0,0.00018998,2]
[319342449,1710678647320,-500.0,0.00018998,2]
[319342450,1710678647330,-531.92,0.00018998,2]
[319342451,1710678647340,-500.0,0.00018998,2]
[319342452,1710678647349,-500.0,0.00018998,2]
[319342453,1710678647358,-500.0,0.00018998,2]
[319342454,1710678647368,-500.0,0.00018998,2]
[319342455,1710678647377,-500.0,0.00018998,2]
[319342456,1710678647386,-352.65571407,0.00018998,2]
[319342457,1710678647396,-500.0,0.00018998,2]
[319342458,1710678647405,-500.0,0.00018998,2]
[319342459,1710678647414,-500.0,0.00018998,2]
[319342460,1710678647425,-500.0,0.00018998,2]
[319342461,1710678647435,-500.0,0.00018998,2]
[319342462,1710678647444,-288.24551719,0.00018998,2]
[319342463,1710678647454,-500.0,0.00018998,2]
[319342464,1710678647464,-500.0,0.00018998,2]
[319342465,1710678647474,-273.36,0.00018998,2]
[319342466,1710678647484,-500.0,0.00018998,2]
[319342467,1710678647493,-500.0,0.00018998,2]
[319342468,1710678647502,-500.0,0.00018998,2]
[319342469,1710678647512,-500.0,0.00018998,2]
[319342470,1710678647521,-500.0,0.00018998,2]
[319342471,1710678647531,-500.0,0.00018998,2]
[319342472,1710678647541,-500.0,0.00018998,2]
[319342473,1710678647550,-500.0,0.00018998,2]
[319342474,1710678647560,-500.0,0.00018998,2]
[319342475,1710678647570,-500.0,0.00018998,2]
[319342476,1710678647580,-500.0,0.00018998,2]
[319342477,1710678647590,-500.0,0.00018998,2]
[319342478,1710678647599,-771.98,0.00018998,2]
[319342479,1710678647608,-771.98,0.00018998,2]
[319342480,1710678647618,-771.98,0.00018998,2]
[319342481,1710678647628,-771.98,0.00018998,2]
[319342482,1710678647638,-1447.93,0.00018998,2]
[319342483,1710678647648,-1447.93,0.00018998,2]
[319342484,1710678647657,-1447.93,0.00018998,2]
[319342485,1710678647667,-1447.93,0.00018998,2]
[319342486,1710678647678,-500.0,0.00018998,2]
[319342487,1710678647688,-500.0,0.00018998,2]
[319342488,1710678647697,-500.0,0.00018998,2]
[319342489,1710678647706,-500.0,0.00018998,2]
[319342490,1710678647717,-150.01,0.00018999,2]
[319342491,1710678647726,-345.41643369,0.00018999,5]
[319342492,1710678647735,-345.41643368,0.00018999,5]
[319342493,1710678647745,-345.41643369,0.00018999,5]
[319342494,1710678647755,-391672.75737192,0.00018999,2]
[319342495,1710678975106,-1601.0,0.0001468,2]
[319342496,1710678975127,-160.15690147,0.0001468,2]
[319342497,1710678975147,-150.0,0.0001468,2]
[319342498,1710678975167,-16793.3594,0.00014681,2]
[319342499,1710678975187,-2558.8515,0.00014681,2]
[319342500,1710678975209,-869.2,0.00014687,2]
[319342501,1710678975234,-15530.5218495,0.00014781,7]
[319342502,1710678975254,-15623.0146029,0.00014781,7]
[319342503,1710678975275,-155.0,0.00015,2]
[319342504,1710678975295,-3968.55965813,0.00015,2]
[319342505,1710678993014,550.0,0.00015,3]
[319342506,1710679092408,-6453.2777,0.00014581,2]
[319342507,1710679304687,865.29,0.00014138,2]
[319342508,1710679371816,181.16,0.00013699,2]
[319342514,1710679462839,-198.84066801,0.00015985,2]
[319342515,1710679462863,-351.69,0.00015986,2]
[319342516,1710679462887,-392.0,0.00016019,2]
[319342517,1710679462907,-3132.98,0.00016021,2]
[319342518,1710679462927,-540.56,0.00016023,2]
[319342519,1710679462948,-250.0,0.00016069,2]
[319342520,1710679462968,-1682.69,0.0001608,2]
[319342521,1710679462987,-5529.42,0.00016103,2]
[319342522,1710679463005,-1276.39,0.00016105,2]
[319342523,1710679463024,-300.0,0.0001612,2]
[319342524,1710679463047,-150.0,0.0001612,2]
[319342525,1710679463068,-2693.73,0.00016121,2]
[319342526,1710679463101,-200.0,0.00016121,2]
[319342527,1710679463123,-323.52,0.00016155,2]
[319342528,1710679463144,-23900.0,0.00016182,2]
[319342529,1710679463165,-150.99,0.00016233,2]
[319342530,1710679463186,-361.973656,0.00016234,2]
[319342531,1710679463206,-363.99,0.00016292,2]
[319342532,1710679463226,-769.40841776,0.000163,2]
[319342533,1710679463252,-160.15690147,0.00016312,2]
[319342534,1710679463271,-161.78,0.00016342,2]
[319342535,1710679463293,-363.99,0.00016352,2]
[319342536,1710679463313,-299.99,0.00016352,4]
[319342537,1710679463334,-865.29,0.00016402,2]
[319342538,1710679463355,-200.0,0.00016412,2]
[319342539,1710679463618,-363.99,0.00016412,2]
[319342540,1710679463641,-361.973656,0.00016432,2]
[319342541,1710679463665,-676.48,0.00016443,2]
[319342542,1710679463687,-363.99,0.00016472,2]
[319342543,1710679463707,-35407.11065202,0.00016499,2]
[319342544,1710679463727,-1216.46329409,0.000165,2]
[319342545,1710679463748,-186.58,0.000165,2]
[319342546,1710679463768,-150.0,0.00016508,2]
[319342547,1710679463789,-363.99,0.00016532,2]
[319342548,1710679463811,-248.8,0.00016539,2]
[319342549,1710679463831,-163.16,0.00016567,2]
[319342550,1710679463852,-499.99,0.00016567,2]
[319342551,1710679463871,-13389.597,0.00016567,2]
[319342552,1710679463895,-150.99,0.00016574,2]
[319342553,1710679463916,-250.0,0.00016576,2]
[319342554,1710679463939,-363.99,0.00016592,2]
[319342555,1710679474786,-167.0,0.00016622,2]
[319342556,1710679474807,-361.973656,0.0001663,2]
[319342557,1710679474829,-363.99,0.00016652,2]
[319342558,1710679474852,-363.99,0.00016712,2]
[319342559,1710679474874,-163.16,0.00016739,2]
[319342560,1710679474899,-363.99,0.00016772,2]
[319342561,1710679474921,-363.99,0.00016832,2]
[319342562,1710679474942,-363.99,0.00016892,2]
[319342563,1710679496655,-1000.0,0.00015,2]
[319342568,1710679660426,-746.33665963,0.000168,2]
[319342569,1710679660447,-151.89,0.00016801,2]
[319342570,1710679660467,-150.37,0.00016802,2]
[319342571,1710679660486,-500.03910027,0.00016807,2]
[319342572,1710679660507,-200.0,0.00016808,2]
[319342573,1710679660530,-151.17,0.00016907,2]
[319342574,1710679660554,-363.99,0.00016952,2]
[319342575,1710679660574,-600.0,0.00017,3]
[319342577,1710679667778,-363.99,0.00017012,2]
[319342578,1710679667799,-800.0,0.00017068,2]
[319342579,1710679667819,-150.0,0.00017068,2]
[319342580,1710679667839,-150.99,0.00017068,2]
[319342581,1710679667862,-363.99,0.00017072,2]
[319342582,1710679667882,-250.0,0.00017096,2]
[319342583,1710679667906,-220.24,0.00017098,2]
[319342584,1710679667926,-363.99,0.00017132,2]
[319342585,1710679667946,-1500.0,0.00017137,4]
[319342586,1710679667965,-150.0,0.00017169,2]
[319342587,1710679667985,-363.99,0.00017192,2]
[319342588,1710679668005,-163.16,0.00017194,2]
[319342589,1710679668025,-154.5275948,0.00017206,2]
[319342590,1710679668046,-155.71899126,0.00017245,2]
[319342591,1710679668066,-198.84066801,0.00017248,2]
[319342592,1710679668088,-363.99,0.00017252,2]
[319342593,1710679668108,-150.80584848,0.00017255,2]
[319342594,1710679668128,-226.879377,0.0001726,2]
[319342595,1710679668148,-154.5275948,0.00017296,2]
[319342596,1710679668169,-363.99,0.00017312,2]
[319342597,1710679668189,-150.21260499,0.00017336,2]
[319342598,1710679668210,-150.0,0.00017372,2]
[319342599,1710679668232,-363.99,0.00017372,2]
[319342600,1710679668252,-225.0,0.00017388,2]
[319342601,1710679668272,-193.58755576,0.00017428,2]
[319342602,1710679668297,-363.99,0.00017433,2]
[319342603,1710679668322,-163.16,0.00017492,2]
[319342604,1710679668342,-154.5275948,0.00017507,2]
[319342605,1710679668363,-193.58755576,0.00017518,2]
[319342606,1710679668385,-167.0,0.00017536,2]
[319342607,1710679668407,-161.08568244,0.00017626,2]
[319342608,1710679668428,-151.45421479,0.00017713,2]
[319342609,1710679668449,-1000.0,0.00017727,2]
[319342610,1710679668469,-799.03,0.00017728,2]
[319342611,1710679668489,-1036.98,0.00017728,2]
[319342612,1710679668509,-6687.29,0.00017728,2]
[319342613,1710679668528,-29999.99,0.00017728,2]
[319342614,1710679668550,-828.1,0.00017728,2]
[319342615,1710679668569,-19868.223,0.00017742,2]
[319342616,1710679668589,-163.16,0.00017791,2]
[319342617,1710679668609,-193.58755576,0.00017825,2]
[319342618,1710679668629,-245.67548674,0.00017857,2]
[319342619,1710679668650,-500.0,0.0001789,2]
[319342620,1710679668672,-1141.8239,0.000179,2]
[319342621,1710679668693,-193.58755576,0.00017943,2]
[319342622,1710679668714,-1400.0,0.00017954,2]
[319342623,1710679668734,-193.58755576,0.00017972,2]
[319342624,1710679668754,-1000.0,0.00017999,2]
[319342625,1710679668774,-113001.56304452,0.00018,2]
[319342643,1710679832206,-853.9,0.00015693,2]
[319342644,1710679832216,-300.0,0.00016522,2]
[319342645,1710679832226,-152.12,0.00017092,2]
[319342646,1710679832235,-363.66334037,0.00017097,2]
[319342647,1710679832245,-175.84,0.00017526,2]
[319342648,1710679832254,-151.99,0.00017531,2]
[319342649,1710679832264,-150.21,0.00017544,2]
[319342650,1710679832273,-250.0,0.00017552,2]
[319342651,1710679832283,-3685.94,0.00017554,2]
[319342652,1710679832293,-500.0,0.0001789,2]
[319342653,1710679832302,-5203.0239,0.000179,2]
[319342654,1710679832311,-254.1727,0.000179,2]
[319342655,1710679832320,-853.9,0.00017957,2]
[319342656,1710679832332,-55406.98475515,0.00018,2]
[319342657,1710679832342,-531.13,0.00018,2]
[319342658,1710679832351,-11000.0,0.00018,2]
[319342659,1710679832361,-332430.58936342,0.00018,2]
[319342660,1710679832371,-150.0,0.00018,2]
[319342661,1710679832382,-2375.681,0.00018,2]
[319342662,1710679832391,-155.0,0.00018,2]
[319342663,1710679832401,-250.0,0.00018,2]
[319342664,1710679832410,-3639.8686093,0.00018,2]
[319342665,1710679832421,-150.0,0.00018,2]
[319342666,1710679832432,-2000.0,0.00018,2]
[319342667,1710679832442,-200.0,0.00018,2]
[319342668,1710679832451,-161.08568244,0.0001802,2]
[319342669,1710679832460,-167.0,0.0001808,2]
[319342670,1710679832469,-204.191439,0.00018082,2]
[319342671,1710679832479,-163.16,0.0001809,2]
[319342672,1710679832489,-155.71899126,0.00018126,2]
[319342673,1710679832498,-155.71899126,0.00018146,2]
[319342674,1710679832508,-68794.0,0.00018155,2]
[319342675,1710679832517,-323.52,0.00018175,2]
[319342676,1710679832527,-2000.0,0.0001818,2]
[319342677,1710679832536,-200.0,0.0001818,2]
[319342678,1710679832546,-161.08568244,0.00018195,2]
[319342679,1710679832555,-161.08568244,0.00018203,2]
[319342680,1710679832564,-2000.0,0.00018362,2]
[319342681,1710679832574,-200.0,0.00018362,2]
[319342682,1710679832584,-151.45421479,0.00018363,2]
[319342683,1710679832593,-167.0,0.00018451,2]
[319342684,1710679832603,-166.66666668,0.00018473,2]
[319342685,1710679832614,-676.48,0.00018498,2]
[319342686,1710679832623,-1877.6963,0.000185,2]
[319342687,1710679832633,-1000.0,0.00018532,2]
[319342689,1710679832642,-2000.0,0.00018545,2]
[319342691,1710679832652,-200.0,0.00018545,2]
[319342693,1710679832661,-150.80584848,0.00018576,2]
[319342695,1710679832672,-248.8,0.00018607,2]
[319342698,1710679832682,-150.0,0.00018682,2]
[319342701,1710679832692,-161.08568244,0.00018701,2]
[319342703,1710679832701,-2000.0,0.00018731,2]
[319342705,1710679832711,-200.0,0.00018731,2]
[319342707,1710679832721,-193.58755576,0.00018762,2]
[319342708,1710679832730,-311.87175292,0.00018789,2]
[319342711,1710679832741,-800.0,0.00018795,2]
[319342712,1710679832750,-311.87175288,0.00018805,2]
[319342714,1710679832760,-249.65614262,0.00018807,2]
[319342716,1710679832770,-161.90887801,0.0001881,2]
[319342718,1710679832781,-31916.82094136,0.0001881,2]
[319342720,1710679832791,-155.71899126,0.00018817,2]
[319342722,1710679832800,-311.87175288,0.00018821,2]
[319342724,1710679832810,-311.87175288,0.00018837,2]
[319342725,1710679832819,-150.0,0.00018845,2]
[319342726,1710679832828,-200.0,0.00018848,2]
[319342727,1710679832838,-800.0,0.00018848,2]
[319342728,1710679832847,-200.0,0.00018848,2]
[319342729,1710679832857,-500.0,0.00018848,2]
[319342731,1710679832866,-200.0,0.00018848,2]
[319342732,1710679832876,-311.87175288,0.00018852,2]
[319342733,1710679832886,-311.87175288,0.00018868,2]
[319342734,1710679832896,-193.58755576,0.0001887,2]
[319342735,1710679832907,-4473.57522259,0.0001888,2]
[319342736,1710679832920,-311.87175288,0.00018884,2]
[319342737,1710679832932,-30057.9613171,0.00018889,2]
[319342738,1710679832944,-30057.96131702,0.00018889,2]
[319342739,1710679832955,-6893.00838957,0.00018889,2]
[319342740,1710679832969,-1653.71037969,0.00018889,2]
[319342741,1710679832982,-10912.30695375,0.00018889,2]
[319342742,1710679832994,-4684.24261964,0.00018889,2]
[319342743,1710679833006,-3515.27882755,0.00018889,2]
[319342744,1710679833023,-415.57440224,0.00018889,2]
[319342745,1710679833046,-567.75368468,0.00018889,2]
[319342746,1710679833059,-1416.0860599,0.00018889,2]
[319342747,1710679833069,-1585.5489401,0.00018889,2]
[319342748,1710679833082,-381.72189775,0.00018889,2]
[319342749,1710679833096,-603.26280652,0.00018889,2]
[319342750,1710679833109,-566.55211337,0.00018889,2]
[319342751,1710679833126,-281.25389875,0.00018889,2]
[319342752,1710679833139,-26639.62166053,0.00018889,2]
[319342753,1710679833149,-158.85161328,0.00018889,2]
[319342754,1710679833160,-3304.94020619,0.00018889,2]
[319342755,1710679833174,-1260.95216954,0.00018889,2]
[319342756,1710679833186,-1047.0,0.00018889,2]
[319342757,1710679833199,-4654.44,0.00018889,2]
[319342758,1710679833212,-740.58240107,0.00018889,2]
[319342759,1710679833226,-500.53973003,0.00018889,2]
[319342760,1710679833239,-995.87545876,0.00018889,2]
[319342761,1710679833269,-589.1351042,0.00018889,2]
[319342762,1710679833292,-1712.57125797,0.00018889,2]
[319342763,1710679833304,-266.9333,0.00018889,2]
[319342783,1710679838391,-14984.99168926,0.00018889,2]
[319342784,1710679838401,-158.85161328,0.00018889,2]
[319342785,1710679838411,-14615.12398338,0.00018889,2]
[319342786,1710679838422,-347.62118448,0.00018889,2]
[319342787,1710679838434,-15095.21614916,0.00018889,2]
[319342788,1710679838444,-30057.96131702,0.00018889,2]
[319342789,1710679838453,-30057.96131702,0.00018889,2]
[319342790,1710679838462,-30057.96131702,0.00018889,2]
[319342791,1710679838472,-162.4501,0.00018899,2]
[319342792,1710679838481,-1856.97280354,0.00018899,2]
[319342793,1710679838490,-160.15690147,0.00018899,2]
[319342794,1710679838500,-153.39740362,0.00018899,2]
[319342795,1710679838509,-255.30948362,0.00018899,2]
[319342796,1710679838519,-191.89105508,0.00018899,2]
[319342797,1710679838529,-1856.97280352,0.00018899,2]
[319342798,1710679838538,-1856.97280352,0.00018899,2]
[319342799,1710679838547,-1856.97280352,0.00018899,2]
[319342800,1710679838556,-1856.97280352,0.00018899,2]
[319342801,1710679838565,-1856.97280352,0.00018899,2]
[319342802,1710679838575,-1856.97280352,0.000189,2]
[319342803,1710679838584,-1856.97280352,0.000189,2]
[319342804,1710679838593,-1856.97280352,0.000189,2]
[319342805,1710679838602,-1856.97280352,0.000189,2]
[319342806,1710679838611,-1856.97280352,0.000189,2]
[319342807,1710679838621,-1856.97280352,0.000189,2]
[319342808,1710679838630,-5000.0,0.000189,2]
[319342809,1710679838640,-158.85161328,0.000189,2]
[319342810,1710679838649,-30057.96131702,0.000189,2]
[319342811,1710679838658,-2500.0,0.000189,2]
[319342812,1710679838668,-1619.54222374,0.000189,2]
[319342813,1710679838679,-204.54628221,0.000189,3]
[319342814,1710679838688,-205.27173429,0.000189,2]
[319342815,1710679838697,-311.87175288,0.000189,2]
[319342817,1710679838707,-191.89105507,0.000189,2]
[319342819,1710679838716,-296.71847077,0.000189,2]
[319342821,1710679838725,-1909.77120877,0.000189,2]
[319342823,1710679838734,-193.58755576,0.00018904,2]
[319342825,1710679838743,-204.191439,0.00018904,2]
[319342827,1710679838753,-225.0,0.00018931,2]
[319342829,1710679838762,-150.80584848,0.00018945,2]
[319342831,1710679838771,-800.0,0.00018959,2]
[319342833,1710679838781,-175.58196688,0.00018961,2]
[319342835,1710679838791,-161.08568244,0.00018969,2]
[319342837,1710679838800,-500.0,0.00018986,2]
[319342839,1710679838810,-470.52,0.0001899,2]
[319342841,1710679838819,-500.0,0.0001899,2]
[319342843,1710679838829,-500.0,0.0001899,2]
[319342845,1710679838838,-491.83375231,0.0001899,2]
[319342847,1710679838847,-500.0,0.0001899,2]
[319342849,1710679838856,-74535.8642014,0.00018995,2]
[319342851,1710679838865,-3700.3140421,0.00018995,2]
[319342853,1710679838874,-155.0,0.00018995,2]
[319342855,1710679838883,-7980.36341478,0.00018997,2]
[319342857,1710679838893,-166.0502098,0.00018997,2]
[319342859,1710679838902,-155.0,0.00018997,2]
[319342861,1710679838912,-155.0,0.00018997,2]
[319342863,1710679838921,-4894.34338047,0.00018997,2]
[319342878,1710679839141,-409.6581285,0.00018997,2]
[319342879,1710679839151,-155.15251527,0.00018997,2]
[319342880,1710679839161,-3643.4980891,0.00018997,2]
[319342881,1710679839170,-3339.56074535,0.00018997,2]
[319342882,1710679839180,-203.14585146,0.00018997,2]
[319342883,1710679839190,-5157.96972196,0.00018997,2]
[319342884,1710679839199,-263.45844408,0.00018997,2]
[319342885,1710679839208,-19361.4999371,0.00018997,2]
[319342886,1710679839218,-373.40071982,0.00018997,2]
[319342887,1710679839227,-1037.66791072,0.00018997,2]
[319342888,1710679839237,-500.0,0.00018997,2]
[319342889,1710679839246,-500.0,0.00018997,2]
[319342890,1710679839255,-500.0,0.00018997,2]
[319342891,1710679839264,-3963.89080729,0.00018997,2]
[319342892,1710679839274,-273.54691002,0.00018997,2]
[319342893,1710679839283,-155.0,0.00018997,2]
[319342894,1710679839293,-152.11907056,0.00018997,2]
[319342895,1710679839302,-336.40592341,0.00018997,2]
[319342896,1710679839312,-198.65502792,0.00018997,2]
[319342897,1710679839321,-387.27690542,0.00018998,2]
[319342898,1710679839331,-500.0,0.00018998,2]
[319342899,1710679839342,-500.0,0.00018998,2]
[319342900,1710679839351,-539.91175684,0.00018998,2]
[319342901,1710679839360,-500.0,0.00018998,2]
[319342902,1710679839369,-500.0,0.00018998,2]
[319342903,1710679839381,-500.0,0.00018998,2]
[319342904,1710679839390,-621.42964739,0.00018998,2]
[319342905,1710679839399,-500.0,0.00018998,2]
[319342906,1710679839408,-611.75429088,0.00018998,2]
[319342907,1710679839419,-546.43903672,0.00018998,2]
[319342908,1710679839429,-500.0,0.00018998,2]
[319342909,1710679839439,-500.0,0.00018998,2]
[319342910,1710679839448,-500.0,0.00018998,2]
[319342911,1710679839457,-500.0,0.00018998,2]
[319342912,1710679839467,-207.79799635,0.00018998,2]
[319342913,1710679839476,-500.0,0.00018998,2]
[319342914,1710679839485,-500.0,0.00018998,2]
[319342915,1710679839493,-500.0,0.00018998,2]
[319342916,1710679839502,-623.296717,0.00018998,2]
[319342917,1710679839511,-500.0,0.00018998,2]
[319342918,1710679839521,-500.0,0.00018998,2]
[319342919,1710679839530,-500.0,0.00018998,2]
[319342920,1710679839538,-500.0,0.00018998,2]
[319342921,1710679839547,-500.0,0.00018998,2]
[319342922,1710679839556,-500.0,0.00018998,2]
[319342923,1710679839565,-500.0,0.00018998,2]
[319342924,1710679839575,-500.0,0.00018998,2]
[319342925,1710679839584,-500.0,0.00018998,2]
[319342926,1710679839593,-500.0,0.00018998,2]
[319342927,1710679839603,-500.0,0.00018998,2]
[319342928,1710679839612,-450.71,0.00018998,2]
[319342929,1710679839622,-500.0,0.00018998,2]
[319342930,1710679839630,-500.0,0.00018998,2]
[319342931,1710679839640,-500.0,0.00018998,2]
[319342932,1710679839649,-514.65,0.00018998,2]
[319342933,1710679839658,-514.65,0.00018998,2]
[319342934,1710679839667,-514.65,0.00018998,2]
[319342935,1710679839677,-514.65,0.00018998,2]
[319342936,1710679839686,-514.65,0.00018998,2]
[319342937,1710679839695,-965.29,0.00018998,2]
[319342938,1710679839705,-965.29,0.00018998,2]
[319342939,1710679839714,-965.29,0.00018998,2]
[319342940,1710679839724,-965.29,0.00018998,2]
[319342941,1710679839733,-965.29,0.00018998,2]
[319342942,1710679839742,-500.0,0.00018998,2]
[319342943,1710679839751,-500.0,0.00018998,2]
[319342944,1710679839760,-500.0,0.00018998,2]
[319342945,1710679839769,-500.0,0.00018998,2]
[319342946,1710679839778,-500.0,0.00018998,2]
[319342947,1710679839788,-500.0,0.00018998,2]
[319342948,1710679839797,-500.0,0.00018998,2]
[319342949,1710679839808,-181971.31755787,0.00018999,2]
[319342952,1710679839984,-397536.83413936,0.00018999,2]
[319342954,1710679839993,-2000.0,0.00018999,2]
[319342956,1710679840003,-155.0,0.00018999,2]
[319342957,1710679840012,-2000.0,0.00018999,2]
[319342958,1710679840020,-200.0,0.00018999,2]
[319342959,1710679840029,-2000.0,0.00018999,2]
[319342960,1710679840038,-200.0,0.00018999,2]
[319342961,1710679840048,-2000.0,0.00018999,2]
[319342962,1710679840057,-200.0,0.00018999,2]
[319342963,1710679840066,-3000.0,0.00018999,2]
[319342964,1710679840075,-205.08560438,0.00018999,2]
[319342965,1710679840084,-201.22667184,0.00018999,2]
[319342966,1710679840093,-500.0,0.00018999,2]
[319342967,1710679840102,-500.0,0.00018999,2]
[319342968,1710679840111,-500.0,0.00018999,2]
[319342969,1710679840120,-500.0,0.00018999,2]
[319342970,1710679840129,-500.0,0.00018999,2]
[319342971,1710679840138,-500.0,0.00018999,2]
[319342972,1710679840147,-500.0,0.00018999,2]
[319342973,1710679840155,-631.50713397,0.00018999,2]
[319342974,1710679840164,-500.0,0.00018999,2]
[319342975,1710679840175,-500.0,0.00018999,2]
[319342976,1710679840184,-500.0,0.00018999,2]
[319342977,1710679840193,-500.0,0.00018999,2]
[319342978,1710679840203,-500.0,0.00018999,2]
[319342979,1710679840212,-444.16411184,0.00018999,2]
[319342980,1710679840222,-150.0,0.00018999,2]
[319342981,1710679840231,-150.0,0.00018999,2]
[319342982,1710679840240,-150.0,0.00018999,2]
[319342983,1710679840249,-514.65,0.00018999,2]
[319342984,1710679840258,-514.65,0.00018999,2]
[319342985,1710679840267,-514.65,0.00018999,2]
[319342986,1710679840276,-150.0,0.00018999,2]
[319342987,1710679840285,-514.65,0.00018999,2]
[319342988,1710679840294,-514.65,0.00018999,2]
[319342989,1710679840303,-514.65,0.00018999,2]
[319342990,1710679840313,-150.0,0.00018999,2]
[319342991,1710679840322,-514.65,0.00018999,2]
[319342992,1710679840332,-514.65,0.00018999,2]
[319342993,1710679840341,-514.65,0.00018999,2]
[319342994,1710679840354,-514.65,0.00018999,2]
[319342995,1710679840363,-150.0,0.00018999,2]
[319342996,1710679840373,-514.65,0.00018999,2]
[319342997,1710679840382,-514.65,0.00018999,2]
[319342998,1710679840394,-514.65,0.00018999,2]
[319342999,1710679840403,-150.0,0.00018999,2]
[319343000,1710679840412,-514.65,0.00018999,2]
[319343001,1710679840422,-514.65,0.00018999,2]
[319343002,1710679840433,-514.65,0.00018999,2]
[319343003,1710679840442,-150.0,0.00018999,2]
[319343004,1710679840451,-514.65,0.00018999,2]
[319343005,1710679840461,-514.65,0.00018999,2]
[319343006,1710679840471,-514.87,0.00018999,2]
[319343007,1710679840480,-150.0,0.00018999,2]
[319343008,1710679840489,-150.0,0.00018999,2]
[319343009,1710679840498,-150.0,0.00018999,2]
[319343010,1710679840507,-150.0,0.00018999,2]
[319343011,1710679840516,-150.0,0.00018999,2]
[319343012,1710679840526,-150.0,0.00018999,2]
[319343013,1710679840535,-150.0,0.00018999,2]
[319343014,1710679840544,-965.29,0.00018999,2]
[319343015,1710679840553,-965.29,0.00018999,2]
[319343016,1710679840562,-965.29,0.00018999,2]
[319343017,1710679840572,-965.29,0.00018999,2]
[319343018,1710679840581,-150.0,0.00018999,2]
[319343019,1710679840590,-965.29,0.00018999,2]
[319343020,1710679840599,-965.29,0.00018999,2]
[319343021,1710679840609,-965.29,0.00018999,2]
[319343022,1710679840618,-150.0,0.00018999,2]
[319343023,1710679840627,-965.29,0.00018999,2]
[319343024,1710679840636,-965.29,0.00018999,2]
[319343025,1710679840645,-965.29,0.00018999,2]
[319343026,1710679840654,-965.29,0.00018999,2]
[319343027,1710679840663,-150.0,0.00018999,2]
[319343028,1710679840672,-965.29,0.00018999,2]
[319343029,1710679840682,-965.29,0.00018999,2]
[319343030,1710679840692,-965.29,0.00018999,2]
[319343031,1710679840701,-965.29,0.00018999,2]
[319343032,1710679840711,-965.29,0.00018999,2]
[319343034,1710679840720,-965.29,0.00018999,2]
[319343036,1710679840729,-965.29,0.00018999,2]
[319343038,1710679840738,-965.43434932,0.00018999,2]
[319343040,1710679840747,-500.0,0.00018999,2]
[319343042,1710679840756,-500.0,0.00018999,2]
[319343044,1710679840764,-455.655383,0.00018999,2]
[319343046,1710679840773,-217.06954072,0.00019,3]
[319343048,1710679840782,-624280.78157372,0.00019,2]
[319343050,1710679840795,-10669.50556599,0.00019,2]